Cogmind - Beta 13 @@@ ROGUE MODE // 2024.06.02 @ 19:50:16 Player: kaj Result: Destroyed by Y-45 Defender with Heavy Assault Rifle Performance ------------- Evolutions (2) 1000 Regions Visited (7) 1400 Robots Destroyed (54) 270 Value Destroyed (1710) 1710 Prototype IDs (25) 500 Alien Tech Used (0) 0 Bonus (300) 300 TOTAL SCORE: 5180 Bonus ------- Aligned with FarCom 300 Cogmind --------- Core Integrity 0/550 Matter 198/300 Energy 160/160 System Corruption 10% Temperature Cool (18) Movement Walking (120) Location -8/Materials Parts ------- > --- POWER (1) -------- Light Nuclear Core > --- PROPULSION (4) --- Titanium Leg Titanium Leg Titanium Leg VSS Leg > --- UTILITY (4) ------ High-capacity Storage Unit Signal Interpreter Improved Targeting Computer Hacking Suite > --- WEAPON (2) ------- Improved Grenade Launcher Missile Launcher > --- INVENTORY (20) --- Micro Nuclear Core Micro Nuclear Core Micro Nuclear Core Medium Treads Medium Treads Medium Treads Medium Treads VSS Leg VSS Leg Wheel Armored Wheel Improved Heat Sink High-capacity Matter Pod (200) Hardened Medium Armor Plating Hacking Suite Long-range Tractor Beam High-powered Shotgun High-powered Shotgun Flak Cannon Flak Cannon Peak State ------------ > --- POWER ------------ Light Deuterium Engine > --- PROPULSION ------- Carbon-fiber Leg Carbon-fiber Leg Carbon-fiber Leg Titanium Leg > --- UTILITY ---------- High-capacity Storage Unit Signal Interpreter 0b10 Alert Chip Improved Targeting Computer > --- WEAPON ----------- Heavy Hammer Katana > --- INVENTORY -------- Light Nuclear Core Light Nuclear Core Light Treads Advanced Treads Advanced Treads Wheel Improved Heat Sink High-capacity Matter Pod High-capacity Matter Pod Targeting Computer Melee Analysis Suite High-powered Tractor Beam Enhanced Autogun Enhanced Autogun Enhanced Autogun Grenade Launcher Grenade Launcher Datajack Katana [Rating: 34] Favorites ----------- Power Light Nuclear Core Engine Light Deuterium Engine Power Core Light Nuclear Core Propulsion Light Treads Treads Light Treads Leg Aluminum Leg Wheel Compact Wheel Utility Signal Interpreter Storage High-capacity Storage Unit Processor Signal Interpreter Hackware Hacking Suite Protection Reflective Plating Weapon Grenade Launcher Energy Gun Small Laser Ballistic Gun Light Assault Rifle Ballistic Cannon Flak Cannon Launcher Grenade Launcher Impact Weapon Heavy Hammer Slashing Weapon Katana Build | -11 -10 -10 -9 -9 -9 -8 -8 ------- Run | Yrd Mat Min Mat Min Exi Min Mat Slots Evolved 4 | . . . 2 . . . 2 Power . | . . . . . . . . Propulsion 2 | . . . 2 . . . . Utility 2 | . . . . . . . 2 Weapon . | . . . . . . . . Parts Attached 71 | 3 2 6 4 2 . 1 53 Power 8 | . . 1 . . . 1 6 Engine 3 | . . . . . . . 3 Core 5 | . . 1 . . . 1 3 Reactor . | . . . . . . . . Propulsion 26 | 2 . 2 3 . . . 19 Treads 9 | 1 . 1 2 . . . 5 Leg 14 | . . . 1 . . . 13 Wheel 3 | 1 . 1 . . . . 1 Hover . | . . . . . . . . Flight . | . . . . . . . . Utility 9 | . 2 . . . . . 7 Device . | . . . . . . . . Storage 2 | . 1 . . . . . 1 Processor 5 | . 1 . . . . . 4 Hackware 1 | . . . . . . . 1 Protection 1 | . . . . . . . 1 Artifact . | . . . . . . . . Weapon 28 | 1 . 3 1 2 . . 21 Energy Gun 1 | . . 1 . . . . . Energy Cannon . | . . . . . . . . Ballistic Gun 16 | 1 . 2 1 . . . 12 Ballistic Cannon 1 | . . . . . . . 1 Launcher 6 | . . . . 2 . . 4 Special Weapon . | . . . . . . . . Impact Weapon 1 | . . . . . . . 1 Slashing Weapon 3 | . . . . . . . 3 Piercing Weapon . | . . . . . . . . Special Melee Weapon . | . . . . . . . . Unidentified Prototypes 2 | . . . . . . . 2 Corrupted Parts 2 | . . . . . . . 2 System Corruption 10 | . . . . . . . 10 Parts Lost 28 | . . 6 1 . . . 21 Power 5 | . . 1 . . . . 4 Propulsion 12 | . . 1 1 . . . 10 Utility 2 | . . . . . . . 2 Weapon 9 | . . 4 . . . . 5 Highest Loss Streak 13 | . . 3 1 . . . 13 To Critical Strikes 1 | . . . . . . . 1 Average Slot Usage (%) 97 | . 93 98 97 100 100 100 97 Engine 4 | . 14 8 . . . . 4 Core 6 | . . 5 11 11 11 11 4 Treads 12 | . 14 17 30 22 22 22 3 Leg 15 | . . . 2 11 11 11 28 Wheel 7 | . 14 10 11 11 11 11 3 Storage 10 | . 14 14 11 11 11 11 9 Processor 17 | . 7 14 11 11 11 11 24 Energy Gun 2 | . 14 9 . . . . . Ballistic Gun 9 | . 14 16 20 8 . . 8 Launcher 5 | . . . . 13 22 22 . Impact Weapon 1 | . . . . . . . 3 Slashing Weapon 1 | . . . . . . . 3 Naked Turns . | . . . . . . . . Heaviest Build 61 | 13 48 49 49 51 51 53 61 Greatest Support 63 | 20 10 40 16 16 16 16 63 Greatest Overweight (x) 16 | 1 4 4 3 3 3 3 16 Average Overweight (x) 2 | . 1 3 2 3 3 3 1 Largest Inventory Capacity 20 | 8 20 20 20 20 20 20 20 Average Capacity 19 | 8 12 20 20 20 20 20 20 Most Carried 20 | 6 10 18 19 20 20 20 20 Average Carried 17 | 5 6 15 17 19 19 19 18 Final Capacity 20 | 8 20 20 20 20 20 20 20 Final Carried 20 | 3 10 17 18 20 20 20 20 Class Distribution -------------------- 78% | Mutant 21% | Scavenger-Mutant Dominant Class ---------------- Mutant | -10/Materials Mutant | -10/Mines Mutant | -9/Materials Mutant | -9/Mines Mutant | -9/Exiles Mutant | -8/Mines Mutant | -8/Materials Resources | -11 -10 -10 -9 -9 -9 -8 -8 ----------- Run | Yrd Mat Min Mat Min Exi Min Mat Matter Collected 1946 | 164 109 451 223 30 . 11 958 Remotely . | . . . . . . . . Salvage Created 1627 | . 203 176 133 . . 15 1100 Parts 98 | . 10 18 8 . . 9 53 Haulers Intercepted . | . . . . . . . . Recyclers Shooed 1 | . . 1 . . . . . Parts Field Recycled . | . . . . . . . . Retrieved Matter . | . . . . . . . . Parts Self-Destructed . | . . . . . . . . Prevented . | . . . . . . . . Kills | -11 -10 -10 -9 -9 -9 -8 -8 ------- Run | Yrd Mat Min Mat Min Exi Min Mat Combat Hostiles Destroyed 47 | . 4 8 3 . . 4 28 Melee 8 | . . . . . . . 8 Guns 23 | . 4 8 3 . . . 8 Cannons 3 | . . . . . . . 3 AOE 11 | . . . . . . 4 7 Classes Destroyed 10 | . 2 1 . . . . 7 Worker 1 | . . . . . . . 1 Builder 2 | . . . . . . . 2 Operator 1 | . . . . . . . 1 Watcher 3 | . 1 . . . . . 2 Swarmer 15 | . . 6 . . . 4 5 Grunt 23 | . 4 2 3 . . . 14 Duelist 2 | . . . . . . . 2 Sentry 4 | . . . . . . . 4 Specialist 2 | . . . . . . . 2 Heavy 1 | . . . . . . . 1 Best Kill Streak 6 | . 2 2 2 . . 4 6 Combat Bots Only 5 | . 2 2 2 . . 4 5 Max Kills in Single Turn 2 | . 2 1 1 . . 2 2 Gunslinging 1 | . 1 . . . . . . Exploded 2 | . . . . . . 2 2 Melee 1 | . . . . . . . 1 Uniques/NPCs Destroyed . | . . . . . . . . Combat | -11 -10 -10 -9 -9 -9 -8 -8 -------- Run | Yrd Mat Min Mat Min Exi Min Mat Hostile Shots Fired 267 | . 18 66 15 . . 2 166 Missed 73 | . 7 16 6 . . 2 42 Damage Taken 3661 | . 146 486 137 . . 106 2786 Core 653 | . 13 64 11 . . 10 555 Absorbed by Shields . | . . . . . . . . Ignored by Resistances 8 | . . . . . . . 8 Core Remaining (%) 87 | 100 . 69 . . . 94 . Volleys Fired 101 | . 11 21 9 . . 2 58 Largest 2 | . 2 2 2 . . 2 2 Hottest 72 | . 60 70 43 . . 60 72 Shots Fired 188 | . 22 41 18 . . 4 103 Gun 161 | . 22 41 18 . . . 80 Cannon 14 | . . . . . . . 14 Launcher 13 | . . . . . . 4 9 Special . | . . . . . . . . Kinetic 154 | . 11 31 18 . . . 94 Thermal 21 | . 11 10 . . . . . Explosive 13 | . . . . . . 4 9 Electromagnetic . | . . . . . . . . Robot Hit Streak 16 | . 6 13 11 . . . 16 Robot Miss Streak 4 | . 1 3 1 . . 1 4 Penetration Max . | . . . . . . . . Secondary Targets 4 | . 1 1 . . . . 2 Max Gunslinging Chain 1 | . 1 1 . . . . 1 Shots Hit Robots 160 | . 15 30 14 . . . 101 Core Hits 92 | . 9 12 6 . . 4 61 Critical Kills 2 | . . . . . . . 2 Critical Parts Destroyed 6 | . . . 1 . . . 5 Critical Strikes 10 | . . 1 1 . . . 8 Burn 1 | . . 1 . . . . . Destroy 1 | . . . 1 . . . . Smash 7 | . . . . . . . 7 Sever 1 | . . . . . . . 1 Melee Attacks 38 | . . . . . . . 38 Impact 18 | . . . . . . . 18 Slashing 20 | . . . . . . . 20 Piercing . | . . . . . . . . Sneak Attacks 3 | . . . . . . . 3 Combat Hostiles . | . . . . . . . . Follow-up Attacks 1 | . . . . . . . 1 Damage Inflicted 3831 | . 196 362 159 . . 208 2906 Guns 1571 | . 196 362 159 . . . 854 Cannons 235 | . . . . . . . 235 Explosions 988 | . . . . . . 208 780 Melee 1037 | . . . . . . . 1037 Ramming . | . . . . . . . . Kinetic 1598 | . 83 267 159 . . . 1089 Thermal 208 | . 113 95 . . . . . Explosive 988 | . . . . . . 208 780 Electromagnetic . | . . . . . . . . Impact 513 | . . . . . . . 513 Slashing 524 | . . . . . . . 524 Piercing . | . . . . . . . . Highest Corruption 10 | . . . . . . . 10 Average Corruption 9 | . . . . . . . 9 Corruption Purged . | . . . . . . . . Corruption Blocked . | . . . . . . . . Effects 61 | . . . . . . . 61 Message Errors 14 | . . . . . . . 14 Matter Fused 18 | . . . . . . . 18 Heat Flow Errors 5 | . . . . . . . 5 Energy Discharges 7 | . . . . . . . 7 Parts Rejected 1 | . . . . . . . 1 Parts Fused 1 | . . . . . . . 1 Data Loss (minor) 10 | . . . . . . . 10 Data Loss (major) 2 | . . . . . . . 2 Misfires 1 | . . . . . . . 1 Alerts 1 | . . . . . . . 1 Misdirections 1 | . . . . . . . 1 Overload Shots . | . . . . . . . . Overflow Damage 335 | . . . . . . 1 334 Projectiles . | . . . . . . . . Explosions 31 | . . . . . . 1 30 Melee 304 | . . . . . . . 304 Knockbacks 13 | . . . . . . . 13 Impact 4 | . . . . . . . 4 Kinetic 9 | . . . . . . . 9 Secondary . | . . . . . . . . Self-Inflicted Damage 424 | . . . . . . 107 317 Shots 13 | . . . . . . 4 9 Rammed . | . . . . . . . . Targets Rammed . | . . . . . . . . Kicked . | . . . . . . . . Crushed . | . . . . . . . . Highest Temperature 261 | . 54 84 6 . . . 261 Average Temperature 41 | . 24 31 6 . . . 47 Received Heat Transfer 915 | . 99 123 54 . . . 639 Siege Activations . | . . . . . . . . Robots Corrupted . | . . . . . . . . Combat Hostiles . | . . . . . . . . Parts Fried 4 | . . . . . . . 4 Impact Corruptions 9 | . . . . . . . 9 Robots Melted . | . . . . . . . . Combat Hostiles . | . . . . . . . . Parts Melted . | . . . . . . . . Heat Transferred 560 | . 250 310 . . . . . Parts Sabotaged . | . . . . . . . . Parts Stolen . | . . . . . . . . Parts Stripped . | . . . . . . . . Power Chain Reactions . | . . . . . . . . Alert | -11 -10 -10 -9 -9 -9 -8 -8 ------- Run | Yrd Mat Min Mat Min Exi Min Mat Peak Influence 288 | . 191 204 135 52 . 111 288 Initial 74 | . . 74 . 52 . . 42 Average 104 | . 100 116 49 52 . 15 131 Maximum Alert Level 1 | . . 1 . . . . 1 Low Security (%) 91 | 100 100 91 100 100 . 100 85 Level 1 8 | . . 8 . . . . 14 Level 2 . | . . . . . . . . Level 3 . | . . . . . . . . Level 4 . | . . . . . . . . Level 5 . | . . . . . . . . High Security . | . . . . . . . . Max Security . | . . . . . . . . Squads Dispatched 12 | . 1 . 2 . . . 9 Investigation 3 | . 1 . . . . . 2 Extermination . | . . . . . . . . Reinforcement 9 | . . . 2 . . . 7 Assault . | . . . . . . . . Garrison . | . . . . . . . . Intercept . | . . . . . . . . Searches Triggered . | . . . . . . . . Construction Impeded 1 | . . . . . . . 1 Haulers Reinforced . | . . . . . . . . Active Scanning Responses . | . . . . . . . . Cargo Convoy Interrupts . | . . . . . . . . Stealth | -11 -10 -10 -9 -9 -9 -8 -8 --------- Run | Yrd Mat Min Mat Min Exi Min Mat Distress Signals 2 | . . . . . . . 2 Communications Jammed . | . . . . . . . . Distress Signals . | . . . . . . . . Times Spotted 79 | . 8 17 7 . . 4 43 Peak Tracking Total 6 | . 3 5 3 . . 4 6 Tactical Retreats 10 | . 1 4 2 . . . 3 Traps | -11 -10 -10 -9 -9 -9 -8 -8 ------- Run | Yrd Mat Min Mat Min Exi Min Mat Traps Triggered 1 | . . . 1 . . . . Indirectly . | . . . . . . . . Trap Hack Attempts . | . . . . . . . . Triggered . | . . . . . . . . Disarmed . | . . . . . . . . Reprogrammed . | . . . . . . . . Reused . | . . . . . . . . Traps Extracted . | . . . . . . . . Installed . | . . . . . . . . Triggered . | . . . . . . . . Machines | -11 -10 -10 -9 -9 -9 -8 -8 ---------- Run | Yrd Mat Min Mat Min Exi Min Mat Machines Disabled 2 | . . . . . . . 2 Max in Single Turn 1 | . . . . . . . 1 Machines Repaired . | . . . . . . . . Machines Dismantled . | . . . . . . . . Machines Sabotaged . | . . . . . . . . Overloaded Fab Kills . | . . . . . . . . Hacking | -11 -10 -10 -9 -9 -9 -8 -8 --------- Run | Yrd Mat Min Mat Min Exi Min Mat Machines Accessed 17 | . 3 . 4 . 3 1 6 Terminals 14 | . 3 . 4 . . 1 6 Fabricators . | . . . . . . . . Repair Stations . | . . . . . . . . Recycling Units . | . . . . . . . . Scanalyzers . | . . . . . . . . Garrison Access . | . . . . . . . . Total Hacks 55 | . 7 . 10 . 18 3 17 Successful 35 | . 3 . 5 . 18 2 7 Failed 20 | . 4 . 5 . . 1 10 Catastrophic 4 | . 1 . . . . . 3 Database Lockouts . | . . . . . . . . Manual 32 | . 7 . 8 . 1 2 14 Terminals 37 | . 7 . 10 . . 3 17 Fabricators . | . . . . . . . . Repair Stations . | . . . . . . . . Recycling Units . | . . . . . . . . Scanalyzers . | . . . . . . . . Garrison Access . | . . . . . . . . Terminal Hacks 23 | . 1 . 1 . 18 1 2 Record 17 | . . . . . 17 . . Robot Analysis 2 | . 1 . 1 . . . . Branch Access Points 1 | . . . . . . . 1 Zone Layout 2 | . . . . . . 1 1 Derelict Proto ID Bank 1 | . . . . . 1 . . Fabricator Hacks . | . . . . . . . . Repair Station Hacks . | . . . . . . . . Recycling Unit Hacks . | . . . . . . . . Scanalyzer . | . . . . . . . . Garrison Access Hacks . | . . . . . . . . Unauthorized Hacks 12 | . 2 . 4 . . 1 5 Terminals 12 | . 2 . 4 . . 1 5 Botnet 12 | . 2 . 4 . . 1 5 Fabricators . | . . . . . . . . Repair Stations . | . . . . . . . . Recycling Units . | . . . . . . . . Scanalyzers . | . . . . . . . . Garrison Access . | . . . . . . . . Data Cores Recovered . | . . . . . . . . Used . | . . . . . . . . Hacking Detections 10 | . 3 . 2 . . . 5 Full Trace Events 5 | . 2 . 1 . . . 2 Feedback Events . | . . . . . . . . Feedback Blocked . | . . . . . . . . Robot Schematics Acquired . | . . . . . . . . Robots Built . | . . . . . . . . Authchips . | . . . . . . . . Time . | . . . . . . . . Total Robot Build Rating . | . . . . . . . . Part Schematics Acquired . | . . . . . . . . Parts Built . | . . . . . . . . Authchips . | . . . . . . . . Time . | . . . . . . . . Total Part Build Rating . | . . . . . . . . Parts Repaired . | . . . . . . . . Time . | . . . . . . . . Parts Recycled . | . . . . . . . . Recycled Matter . | . . . . . . . . Retrieved Matter . | . . . . . . . . Retrieved Components . | . . . . . . . . Parts Scanalyzed . | . . . . . . . . Part Schematics Acquired . | . . . . . . . . Parts Damaged . | . . . . . . . . Bothacking | -11 -10 -10 -9 -9 -9 -8 -8 ------------ Run | Yrd Mat Min Mat Min Exi Min Mat Used RIF Installer . | . . . . . . . . Robots Hacked . | . . . . . . . . Non-combat . | . . . . . . . . Combat . | . . . . . . . . Robot Hacks Applied . | . . . . . . . . Relay Couplers Released . | . . . . . . . . Fabnet Peak Effective % . | . . . . . . . . Robots Rewired . | . . . . . . . . Allies Hacked . | . . . . . . . . Hacks Repelled . | . . . . . . . . Allies | -11 -10 -10 -9 -9 -9 -8 -8 -------- Run | Yrd Mat Min Mat Min Exi Min Mat Total Allies . | . . . . . . . . Largest Group . | . . . . . . . . Highest-Rated Group . | . . . . . . . . Highest-Rated Ally . | . . . . . . . . Total Orders . | . . . . . . . . Ally Attacks . | . . . . . . . . Total Damage . | . . . . . . . . Kills . | . . . . . . . . Allies Corrupted . | . . . . . . . . Allies Melted . | . . . . . . . . Intel | -11 -10 -10 -9 -9 -9 -8 -8 ------- Run | Yrd Mat Min Mat Min Exi Min Mat Robot Analysis Total 2 | . 1 . 1 . . . . Derelict Logs Recovered 1 | . . 1 . . . . . Drone Launches . | . . . . . . . . Drone Recoveries . | . . . . . . . . Exploration | -11 -10 -10 -9 -9 -9 -8 -8 ------------- Run | Yrd Mat Min Mat Min Exi Min Mat Turns Passed 4621 | 8 238 901 270 198 397 482 2127 Spaces Moved 2414 | 2 165 516 159 134 270 326 842 Core 1 | . . . . . . . 1 Treads 83 | . . 83 . . . . . Legs 563 | 1 . . . . . . 562 Wheels 1767 | 1 165 433 159 134 270 326 279 Hover . | . . . . . . . . Flight . | . . . . . . . . Fastest Speed 95 | 95 95 130 130 145 145 145 120 Average Speed 141 | 107 109 155 142 145 145 145 135 Slowest Speed 850 | 120 140 240 145 145 145 145 850 Overloaded Moves . | . . . . . . . . Propulsion Burnouts . | . . . . . . . . Robots Hopped . | . . . . . . . . Cave-ins Triggered . | . . . . . . . . Exploration Rate (%) 49 | 2 28 94 21 38 61 75 74 Regions Visited 7 Branch Regions 4 Pre-discovered Areas . | . . . . . . . . Known Exits Taken 6 | . 1 1 1 1 1 1 . Unknown Exits Taken 1 | 1 . . . . . . . Scrap Searched 4 | . . 3 . 1 . . . Spaces Dug . | . . . . . . . . Terrain Destroyed 134 | . . . . . . 36 98 Melee . | . . . . . . . . Projectile . | . . . . . . . . AOE 134 | . . . . . . 36 98 Terrain Rammed . | . . . . . . . . Walls Destroyed . | . . . . . . . . Machines Disabled . | . . . . . . . . Actions | -11 -10 -10 -9 -9 -9 -8 -8 --------- Run | Yrd Mat Min Mat Min Exi Min Mat Total 3424 | 7 201 574 187 137 277 333 1708 Wait 673 | . 14 15 6 . . . 638 Move 2407 | 1 164 515 158 133 269 325 842 Hop . | . . . . . . . . Pick Up 85 | . 8 14 7 2 4 2 48 Fast Attach 13 | . 1 1 1 . . . 10 Attach 35 | . . 4 3 . . . 28 Detach 4 | . . . . . . . 4 Swap 23 | 3 1 1 . 2 . 1 15 Drop 51 | 3 2 3 3 . 4 3 33 Fire 101 | . 11 21 9 . . 2 58 Melee 32 | . . . . . . . 32 Ram . | . . . . . . . . Kick . | . . . . . . . . Crush . | . . . . . . . . Escape Stasis . | . . . . . . . . Rewire . | . . . . . . . . Trap . | . . . . . . . . Miscellaneous . | . . . . . . . . Route ------- -11/Scrapyard -10/Materials -10/Mines (discovered 2 exits: *Mat x2) -9/Materials -9/Mines (discovered 2 exits: *Mat / *Exi) -9/Exiles (discovered 2 exits: *Min x2) -8/Mines -8/Materials History --------- Turn | Location | Event 1 | -11/Scrapyard | Discovered new exit (range 1) 9 | -11/Scrapyard | Entered Materials 189 | -10/Materials | Discovered new exit (range 11) 234 | -10/Materials | Identified exit to Mines 247 | -10/Materials | Entered Mines 307 | -10/Mines | Build established: Mutant 382 | -10/Mines | Discovered new exit (range 13) 406 | -10/Mines | Identified exit to Materials 544 | -10/Mines | Discovered exit to Materials (range 8) 584 | -10/Mines | Learned Materials terminal intel 944 | -10/Mines | Lost 3 parts (1n2w) 1148 | -10/Mines | Entered Materials 1148 | -9/Materials | Evolved 2 slots: Propulsion x2 1149 | -9/Materials | Loaded intel: 12 terminal locations 1394 | -9/Materials | Discovered new exit (range 6) 1399 | -9/Materials | Identified exit to Mines 1418 | -9/Materials | Entered Mines 1512 | -9/Mines | Discovered new exit (range 7) 1529 | -9/Mines | Identified exit to Materials 1611 | -9/Mines | Deemed a non-threat by the Exiles lab entrance 1611 | -9/Mines | Discovered new exit (range 5) 1615 | -9/Mines | Identified exit to Exiles 1616 | -9/Mines | Entered Exiles 1640 | -9/Exiles | Discovered new exit (range 15) 1657 | -9/Exiles | Met 8R-AWN 1682 | -9/Exiles | Met EX-HEX 1721 | -9/Exiles | Met EX-BIN 1737 | -9/Exiles | Aligned with FarCom system 1738 | -9/Exiles | Given EX-Vault access code 1772 | -9/Exiles | Opened EX-Vault 1839 | -9/Exiles | Found 0b10 Alert Chip 1869 | -9/Exiles | Warned to stay clear of 0b10 Research branches 1909 | -9/Exiles | Met EX-DEC 1994 | -9/Exiles | Discovered new exit (range 14) 2011 | -9/Exiles | Identified exit to Mines 2013 | -9/Exiles | Left Exiles lab with 0b10 Alert Chip 2013 | -9/Exiles | Entered Mines 2489 | -8/Mines | Discovered exit to Materials (range 5) 2495 | -8/Mines | Entered Materials 2495 | -8/Materials | Evolved 2 slots: Utility x2 2874 | -8/Materials | Lost 3 parts (1p2n) 3555 | -8/Materials | System corruption reached 10% 3574 | -8/Materials | Core integrity fell below 50% 3643 | -8/Materials | Core integrity fell below 20% 3670 | -8/Materials | Lost 13 parts (2p7n1u3w) 3957 | -8/Materials | Build established: Scavenger-Mutant 4622 | -8/Materials | Destroyed by Y-45 Defender with Heavy Assault Rifle Last Messages --------------- 04477_ Acquired Prototype Ballistic Gun. 04478_ Identified Imp. Assault Rifle. 04478_ R-06 Scavenger collects Katana. 04479_ Dropped Imp. Assault Rifle. 04484_ Acquired Hrd. Medium Armor Plating. 04491_ System corrupted: Heat flow error (+216). 04521_ System corrupted: Matter fused (-6). 04541_ System corrupted: IFF burst signal emitted. 04545_ O-24 Administrator: "IFF HANDSHAKE FAILED. SECURING TERMINAL." 04551_ ALERT: Hostiles spotted, dispatching reinforcements to Terminal M002. 04560_ R-06 Scavenger inserts Lgt. Cannon into recycling unit. 04561_ Recycling unit begins recycling process. 04563_ R-06 Scavenger inserts Melee Analysis Suite into recycling unit. 04576_ System corrupted: Matter fused (-8). 04586_ Dropped Reflective Plating. 04594_ Acquired Flak Cannon. 04598_ System corrupted: Component data lost. 04598_ T-07 Excavator is excavating. 04619_ S-10 Pest destroyed. Map ----- +----------------------------------------------------+ | # """ #???????????????????????????????????????? | | # #???????????????????????????????????????? | | # !#???????????????????????????????????????? | | + #???????????????????????????????????????? | | #######???????????????????????????????????????? | | #?#######?????????????????????????????????????? | | # #?????????????????????????????????????? | | # #?????????????????????????????????????? | | + #?????????????????????????????????????? | | #########??????????????? ???????????????????? | | +?????????? #??????????????????? | | [ #### ##????????????????# ##?????????????????? | | /#####??????????????????? ##????????????????? | | [ #??????????????????? ?????????????????? | | #??????????????????? ?????????????????? | | #??????????????????? ??Y???????????????? | | #??????????????????? Y ?????###??????????? | | ! = #???????????????????# #???? ??????????? | | [%= # ??????????????????# #??? ?????????? | | = # #??????????Y??????# #?? ?????????? | | # #????????????????## #? ?????????? | | # #????????????????# # "?????????? | | ###### #??????????####??# %= ???????????? | | ?????? #??????????# ??# % ??????????????? | | ?????? #?#######??## #### s #?????????????????? | | ######+### ?+ u @ #?????????????????? | | = # ?# #?????????????????? | | # # ##?????????????????? | | # # #??????????????????? | | # + #??????????????????? | | # # #??????????????????? | | # # ########??????????????"???? | | *| # ?# # g#######?????? "????? | | ! # ?# # +bg #????? ?"???? | | ######/############ + ##### #???? ""???? | | ^%% w # """ #??## ##?? ""#??? | | # """ #??# ## #??? | | ^ % # """ #??# #??? | | ###########+################??# #######?????? | | ???????# %= #?????????????## #########????? | | ????????# #??????????????# #??### | | ????????# #??????????????# #?? # | | #?????# #??????????????# #? # | | #?????# #??????????????# """ +? # | | #?????# [ #?????????????## "R # # | | +?????# ! #???????????### """ # # | | ??????# +???????? + # | | #???????####+######???????????### # # | | #????????# [] #??????????????#####"Y"## # # | | #????????# = = #??????????????????#"""## #? # | +----------------------------------------------------+ Best States ------------- Heat Dissipation 31 Energy Generation 14 Energy Capacity 250 Matter Stores 300 Matter Capacity 300 Sight Range 16 Terrain Scan Density 10 Armor Coverage 150 Resistance: TH 10 Evasion (%) 55 Targeting Accuracy 11 Recoil Reduction 3 Offensive Hacking 10 Item Schematics ----------------- None Robot Schematics ------------------ None Fabricated ------------ Nothing Alien Tech Used ----------------- None Achievements -------------- None Challenges ------------ None Game ------ Seed AntigravLargeField Manual? 0 Play Time 00:35:44 Cumulative 161.3 hours Start 2024.05.30 @ 19:51:46 End 2024.06.02 @ 19:50:16 Sessions 3 Manual Loads 0 Difficulty Rogue Special Mode None Game No. 249 Rogue 249 Adventurer 0 Explorer 0 Win Type - Total 0 Types 0/0/0/0/0/0/0/0/0 Lore% 46 Gallery% 58 Achievement% 44 Wizard Run 0 Options --------- Layout 0 ASCII 0 Keyboard 0 Movement Mouse Keybinds 1 Fullscreen 2 Font 18/SmallcapsGlow Map View 76x50 Zoom Use 4% Tactical HUD 1 Map Filters SATURATION(75) Filters LOW_CONTRAST(23,23,23) Steam 1 RUN: 16735a1a-5519-490f-ba6d-46c4d3820977